bitfinex/quotes_BTCUSD_20250904
["timestamp","ask_amount","ask_price","bid_price","bid_amount"]
[1757014370726,1.22831606,110220.0,110210.0,0.18660263]
[1757014371101,1.22840606,110220.0,110210.0,0.18660263]
[1757014371314,1.22840606,110220.0,110210.0,0.18161263]
[1757014371518,1.22840606,110220.0,110210.0,0.18456263]
[1757014372123,1.32032205,110220.0,110210.0,0.18161263]
[1757014373126,1.32032205,110220.0,110210.0,0.18456263]
[1757014373554,0.70881485,110220.0,110210.0,0.18456263]
[1757014373766,0.70881485,110220.0,110210.0,0.18660263]
[1757014374211,0.70872485,110220.0,110210.0,0.18660263]
[1757014374429,1.00131373,110230.0,110210.0,0.18660263]
[1757014374646,0.37414958,110220.0,110210.0,0.18660263]
[1757014374868,1.37546331,110230.0,110220.0,0.18440527]
[1757014375086,1.54827636,110230.0,110220.0,0.00295]
[1757014375289,0.18145527,110220.0,110210.0,0.18456263]
[1757014375495,0.33457527,110220.0,110210.0,0.18660263]
[1757014375931,0.15312,110220.0,110210.0,0.18660263]
[1757014377009,0.7715901,110220.0,110210.0,0.18660263]
[1757014377233,0.70881485,110220.0,110210.0,0.18660263]
[1757014377467,0.33457527,110220.0,110210.0,0.18660263]
[1757014377685,0.31548543,110220.0,110210.0,0.18660263]
[1757014378559,0.33457527,110220.0,110210.0,0.18660263]
[1757014379578,0.15312,110220.0,110210.0,0.18660263]
[1757014380168,0.33457527,110220.0,110210.0,0.18660263]
[1757014380379,0.70881485,110220.0,110210.0,0.18660263]
[1757014380578,0.73055685,110220.0,110210.0,0.0001409]
[1757014380780,0.70881485,110220.0,110210.0,0.0001409]
[1757014380986,0.70881485,110220.0,110210.0,0.18161263]
[1757014381989,0.70881485,110220.0,110210.0,0.18456263]
[1757014382714,0.70881485,110220.0,110210.0,0.0030909]
[1757014382920,0.70881485,110220.0,110210.0,0.0001409]
[1757014383119,0.80073084,110220.0,110210.0,0.0001409]
[1757014383446,0.80073084,110220.0,110210.0,0.18161263]
[1757014383667,0.82033854,110220.0,110210.0,0.18161263]
[1757014384116,0.72842255,110220.0,110210.0,0.18161263]
[1757014386038,1.22842255,110220.0,110210.0,0.18161263]
[1757014387835,1.22842255,110220.0,110210.0,0.0001409]
[1757014388043,0.18147173,110210.0,110200.0,0.1815282]
[1757014388245,0.70883131,110210.0,110200.0,4e-05]
[1757014388861,0.70883131,110210.0,110200.0,0.1815282]
[1757014389267,0.70883131,110210.0,110200.0,0.1825282]
[1757014389473,0.70883131,110210.0,110200.0,0.00104]
[1757014390733,0.70883131,110210.0,110200.0,0.1835282]
[1757014391267,0.70883131,110210.0,110200.0,0.1866682]
[1757014391644,0.70883131,110210.0,110200.0,0.00518]
[1757014391872,0.70883131,110210.0,110200.0,0.00204]
[1757014392073,0.70883131,110210.0,110200.0,0.1866682]
[1757014392485,0.70883131,110210.0,110200.0,0.1887982]
[1757014392898,0.70874131,110210.0,110200.0,0.1887982]
[1757014393726,0.7088338,110220.0,110200.0,0.1887982]
[1757014393933,0.60257943,110220.0,110200.0,0.1856582]
[1757014394143,0.38154985,110220.0,110210.0,0.18461173]
[1757014394346,0.20009458,110220.0,110210.0,0.18461173]
[1757014394557,0.38154985,110220.0,110210.0,0.18674173]
[1757014394765,0.75569943,110220.0,110210.0,0.18674173]
[1757014394966,0.75569943,110220.0,110210.0,0.00527]
[1757014395185,0.75578943,110220.0,110210.0,0.00527]
[1757014395586,0.75578943,110220.0,110210.0,0.18674173]
[1757014395945,0.49999927,110210.0,110200.0,0.1825282]
[1757014396161,0.31325827,110210.0,110200.0,0.1846582]
[1757014397222,0.31325827,110210.0,110200.0,0.1856582]
[1757014397713,0.31325827,110210.0,110200.0,0.1846582]
[1757014397919,0.31325827,110210.0,110200.0,0.1887982]
[1757014398158,0.49999927,110210.0,110200.0,0.1887982]
[1757014402249,0.50203927,110210.0,110200.0,0.3419182]
[1757014402454,0.49999927,110210.0,110200.0,0.3419182]
[1757014405481,0.49999927,110210.0,110200.0,0.71606778]
[1757014405908,0.49999927,110210.0,110200.0,0.74335642]
[1757014407491,0.49472927,110210.0,110200.0,0.74335642]
[1757014407851,0.49472927,110210.0,110200.0,0.36920684]
[1757014408218,0.49472927,110210.0,110200.0,0.36916684]
[1757014408428,0.71176687,110220.0,110210.0,0.18147173]
[1757014408576,0.71380687,110220.0,110210.0,0.18147173]
[1757014409447,0.79352987,110220.0,110210.0,0.18147173]
[1757014410107,0.71380687,110220.0,110210.0,0.18147173]
[1757014411563,0.71386221,110220.0,110210.0,0.18147173]
[1757014412636,0.33965729,110220.0,110210.0,0.18147173]
[1757014412852,0.71386221,110220.0,110210.0,0.18147173]
[1757014415079,0.37429017,110220.0,110210.0,0.18674173]
[1757014415710,0.55778544,110220.0,110210.0,0.18360173]
[1757014415924,0.55778544,110220.0,110210.0,0.33668173]
[1757014416142,0.56086544,110220.0,110210.0,0.33455173]
[1757014416327,0.55778544,110220.0,110210.0,0.33455173]
[1757014416527,0.55778544,110220.0,110210.0,0.18362173]
[1757014416946,0.55778544,110220.0,110210.0,0.18147173]
[1757014417153,0.56086544,110220.0,110210.0,0.18147173]
[1757014418456,0.55778544,110220.0,110210.0,0.18147173]
[1757014418684,0.18358052,110220.0,110210.0,0.18147173]
[1757014418892,0.55778544,110220.0,110210.0,0.18147173]
[1757014419105,0.55778544,110220.0,110210.0,0.18362173]
[1757014419540,0.18358052,110220.0,110210.0,0.18666173]
[1757014419756,0.00212525,110220.0,110210.0,0.18666173]
[1757014419955,0.55778544,110220.0,110210.0,0.18666173]
[1757014421971,0.37633017,110220.0,110210.0,0.18666173]
[1757014422388,0.55778544,110220.0,110210.0,0.18666173]
[1757014424628,0.37633017,110220.0,110210.0,0.18666173]
[1757014425046,0.55778544,110220.0,110210.0,0.18666173]
[1757014425836,0.37633017,110220.0,110210.0,0.18666173]
[1757014426065,0.19016693,110220.0,110210.0,0.18666173]
[1757014426274,1.24692738,110240.0,110230.0,0.1814388]
[1757014426507,1.6664796,110240.0,110230.0,0.1814388]
[1757014426728,1.2436546,110240.0,110230.0,0.1814388]
[1757014427366,1.2436546,110240.0,110230.0,0.1866288]
[1757014427546,1.2456546,110240.0,110230.0,0.1866288]
[1757014427871,0.49472501,110240.0,110230.0,0.1866288]
[1757014428084,0.620518,110240.0,110230.0,0.1866288]
[1757014428284,0.620518,110240.0,110230.0,0.56083372]
[1757014429146,0.80397035,110240.0,110230.0,0.1866288]
[1757014429343,0.35847035,110240.0,110230.0,0.1866288]
[1757014429966,0.20539035,110240.0,110230.0,0.1866288]
[1757014430379,0.57959527,110240.0,110230.0,0.1866288]
[1757014431352,0.39614292,110240.0,110230.0,0.1866288]
[1757014431550,0.021938,110240.0,110230.0,0.1866288]
[1757014431761,0.021938,110240.0,110230.0,0.3397088]
[1757014433199,0.021938,110240.0,110230.0,0.71391372]
[1757014434575,0.20336035,110240.0,110230.0,0.3397088]
[1757014434929,0.021938,110240.0,110230.0,0.3397088]
[1757014436182,0.021938,110240.0,110230.0,0.71391372]
[1757014437143,0.00208529,110240.0,110230.0,0.71391372]
[1757014437493,0.00208529,110240.0,110230.0,0.74115603]
[1757014438693,8.529e-05,110240.0,110230.0,0.74215603]
[1757014438896,8.529e-05,110240.0,110230.0,0.74315603]
[1757014440099,8.529e-05,110240.0,110230.0,0.36895111]
[1757014440942,8.529e-05,110240.0,110230.0,0.74315603]
[1757014445381,8.529e-05,110240.0,110230.0,0.74315603]
[1757014445784,8.529e-05,110240.0,110230.0,0.21591111]
[1757014446064,8.529e-05,110240.0,110230.0,0.74315603]
[1757014446646,0.55767256,110240.0,110230.0,0.21072111]
[1757014446842,0.37625021,110240.0,110230.0,0.3364788]
[1757014447188,0.55767256,110240.0,110230.0,0.3364788]
[1757014447395,0.55767256,110240.0,110230.0,0.3417488]
[1757014448372,8.529e-05,110240.0,110230.0,0.71595372]
[1757014448591,8.529e-05,110240.0,110230.0,0.71599372]
[1757014449183,0.55767256,110240.0,110230.0,0.3365188]
[1757014449387,0.18346764,110240.0,110230.0,0.3417888]
[1757014451123,0.55767256,110240.0,110230.0,0.00204]
[1757014451311,1.16405034,110240.0,110230.0,0.00204]
[1757014452021,2.64313934,110240.0,110230.0,0.00204]
[1757014452233,2.55818834,110240.0,110230.0,0.00204]
[1757014452472,2.55818834,110240.0,110230.0,4e-05]
[1757014452684,2.57776646,110240.0,110230.0,4e-05]
[1757014452904,2.98464646,110240.0,110230.0,4e-05]
[1757014453519,2.83160646,110240.0,110230.0,4e-05]
[1757014453732,2.85121746,110240.0,110230.0,4e-05]
[1757014455181,2.89282619,110240.0,110230.0,4e-05]
[1757014456622,2.73978619,110240.0,110230.0,4e-05]
[1757014456825,2.89282619,110240.0,110230.0,4e-05]
[1757014457029,2.767075,110240.0,110230.0,4e-05]
[1757014457242,2.920115,110240.0,110230.0,4e-05]
[1757014457450,2.887152,110240.0,110230.0,4e-05]
[1757014457666,3.387152,110240.0,110230.0,4e-05]
[1757014458086,3.76135692,110240.0,110230.0,4e-05]
[1757014458293,3.76985178,110240.0,110230.0,4e-05]
[1757014459140,3.79431218,110240.0,110230.0,4e-05]
[1757014460740,3.79531218,110240.0,110230.0,4e-05]
[1757014461697,3.79431218,110240.0,110230.0,4e-05]
[1757014462085,3.79631218,110240.0,110230.0,4e-05]
[1757014463299,3.77185178,110240.0,110230.0,4e-05]
[1757014464249,3.61881178,110240.0,110230.0,4e-05]
[1757014464655,3.77185178,110240.0,110230.0,4e-05]
[1757014467038,3.61881178,110240.0,110230.0,4e-05]
[1757014467276,3.76335692,110240.0,110230.0,4e-05]
[1757014467493,3.232942,110240.0,110230.0,4e-05]
[1757014467746,3.03696786,110240.0,110230.0,4e-05]
[1757014467953,2.80318286,110240.0,110230.0,4e-05]
[1757014468546,2.80635286,110240.0,110230.0,4e-05]
[1757014468748,3.18055778,110240.0,110230.0,4e-05]
[1757014469196,2.65331286,110240.0,110230.0,4e-05]
[1757014469420,2.80643286,110240.0,110230.0,4e-05]
[1757014470422,3.1891171,110240.0,110230.0,4e-05]
[1757014471190,3.00564946,110240.0,110230.0,4e-05]
[1757014471397,3.20816063,110240.0,110230.0,4e-05]
[1757014471594,3.27947824,110240.0,110230.0,4e-05]
[1757014471832,3.32329771,110240.0,110230.0,4e-05]
[1757014472249,3.34775811,110240.0,110230.0,4e-05]
[1757014472466,4.47037287,110240.0,110230.0,4e-05]
[1757014472631,4.73763067,110240.0,110230.0,4e-05]
[1757014473524,3.24125867,110240.0,110230.0,4e-05]
[1757014473948,3.08813867,110240.0,110230.0,4e-05]
[1757014474129,3.24149867,110240.0,110230.0,4e-05]
[1757014479178,3.2579413,110240.0,110230.0,4e-05]
[1757014481351,0.73145527,110220.0,110210.0,0.00294]
[1757014481553,6.65616103,110220.0,110210.0,0.00294]
[1757014481759,6.80940103,110220.0,110210.0,0.00493]
[1757014481971,6.37345434,110220.0,110210.0,0.00493]
[1757014482181,6.42235578,110220.0,110210.0,0.00493]
[1757014482376,6.032763,110220.0,110210.0,0.00493]
[1757014482767,6.65971827,110220.0,110210.0,0.00493]
[1757014485851,6.65972032,110220.0,110210.0,0.00493]
[1757014486055,6.72664032,110220.0,110210.0,0.00493]
[1757014487154,6.75920129,110220.0,110210.0,0.00493]
[1757014488380,6.75935129,110220.0,110210.0,0.00493]
[1757014488577,6.72679909,110220.0,110210.0,0.00493]
[1757014488930,6.73492783,110220.0,110210.0,0.00493]
[1757014490351,6.73477783,110220.0,110210.0,0.00493]
[1757014490791,5.30167283,110220.0,110210.0,0.00493]
[1757014490986,5.32610711,110220.0,110210.0,0.00493]
[1757014491193,5.30167283,110220.0,110210.0,0.00493]
[1757014492493,5.31795332,110220.0,110210.0,0.00493]
[1757014492690,5.31787332,110220.0,110210.0,0.00493]
[1757014492916,5.35045662,110220.0,110210.0,0.00493]
[1757014493120,5.31787332,110220.0,110210.0,0.00493]
[1757014493330,5.81787332,110220.0,110210.0,0.00493]
[1757014493926,5.81789428,110220.0,110210.0,0.00493]
[1757014494603,5.79730229,110220.0,110210.0,0.00493]
[1757014494815,5.77184264,110220.0,110210.0,0.00493]
[1757014494994,5.8036672,110220.0,110210.0,0.00493]
[1757014495990,5.8038172,110220.0,110210.0,0.00493]
[1757014496923,5.79745229,110220.0,110210.0,0.00493]
[1757014497073,5.80382478,110220.0,110210.0,0.00493]
[1757014497273,5.80367478,110220.0,110210.0,0.00493]
[1757014497510,5.81790864,110220.0,110210.0,0.00493]
[1757014498672,5.81805864,110220.0,110210.0,0.00294]
[1757014498877,5.81805864,110220.0,110210.0,0.00493]
[1757014499893,5.81790864,110220.0,110210.0,0.00493]
[1757014500331,2.98563765,110220.0,110210.0,0.00493]
[1757014500538,2.97445165,110220.0,110210.0,0.00493]
[1757014501164,3.00707359,110220.0,110210.0,0.00493]
[1757014501375,2.97445165,110220.0,110210.0,0.00493]
[1757014502539,2.97643165,110220.0,110210.0,0.00493]
[1757014502745,3.06834764,110220.0,110210.0,0.00493]
[1757014502955,3.06636764,110220.0,110210.0,0.00493]
[1757014503367,3.09900445,110220.0,110210.0,0.00493]
[1757014504607,3.08477059,110220.0,110210.0,0.00493]
[1757014505048,2.33591307,110220.0,110210.0,0.00493]
[1757014505255,2.45695438,110220.0,110210.0,0.00493]
[1757014505685,2.83138314,110220.0,110210.0,0.00493]
[1757014506388,2.83139779,110220.0,110210.0,0.00493]
[1757014507170,2.85586685,110220.0,110210.0,0.00493]
[1757014507945,2.94778284,110220.0,110210.0,0.00493]
[1757014508997,1.59105973,110220.0,110210.0,0.00493]
[1757014509197,1.94101943,110220.0,110210.0,0.00493]
[1757014509404,1.96548849,110220.0,110210.0,0.00493]
[1757014509854,1.96549687,110220.0,110210.0,0.00493]
[1757014510220,1.93253288,110220.0,110210.0,0.00493]
[1757014510642,1.99761055,110220.0,110210.0,0.00493]
[1757014511778,1.93253288,110220.0,110210.0,0.00493]
[1757014515737,2.30894164,110220.0,110210.0,0.00493]
[1757014516605,2.30696164,110220.0,110210.0,0.00493]
[1757014518221,0.52147173,110210.0,110200.0,0.00319]
[1757014518397,1.04898049,110210.0,110200.0,0.00319]
[1757014518593,1.04898049,110210.0,110200.0,0.00515]
[1757014518780,1.07627452,110210.0,110200.0,0.00515]
[1757014520284,1.57627452,110210.0,110200.0,0.00615]
[1757014520480,1.68972738,110210.0,110200.0,0.00419]
[1757014520741,2.18154614,110210.0,110200.0,0.00204]
[1757014520927,2.2105388,110210.0,110200.0,0.00204]
[1757014521157,2.23500786,110210.0,110200.0,0.00204]
[1757014521630,2.23500786,110210.0,110200.0,0.00104]
[1757014521843,2.23500786,110210.0,110200.0,4e-05]
[1757014522064,1.8605791,110210.0,110200.0,4e-05]
[1757014523136,1.84007347,110210.0,110200.0,4e-05]
[1757014524348,1.88133378,110210.0,110200.0,4e-05]
[1757014525312,1.72825378,110210.0,110200.0,4e-05]
[1757014525518,1.7282509,110210.0,110200.0,4e-05]
[1757014525727,1.7269309,110210.0,110200.0,4e-05]
[1757014525925,1.8800109,110210.0,110200.0,4e-05]
[1757014526522,1.7269309,110210.0,110200.0,4e-05]
[1757014526746,1.63501491,110210.0,110200.0,4e-05]
[1757014526927,1.78809491,110210.0,110200.0,4e-05]
[1757014527570,1.80233016,110210.0,110200.0,4e-05]
[1757014528894,1.80365016,110210.0,110200.0,4e-05]
[1757014529102,1.89556615,110210.0,110200.0,4e-05]
[1757014530359,2.08983272,110210.0,110200.0,4e-05]
[1757014530572,2.61309393,110210.0,110200.0,4e-05]
[1757014530780,2.78045712,110210.0,110200.0,4e-05]
[1757014531009,2.83045712,110210.0,110200.0,4e-05]
[1757014531429,2.83145712,110210.0,110200.0,4e-05]
[1757014531835,2.83045712,110210.0,110200.0,4e-05]
[1757014532252,0.70596638,110170.0,110160.0,0.06482861]
[1757014532460,0.70596638,110170.0,110160.0,0.04404106]
[1757014532461,2.06711358,110170.0,110160.0,0.04404106]
[1757014532670,2.08878096,110170.0,110160.0,0.02811093]
[1757014532871,2.13032719,110170.0,110160.0,0.02811093]
[1757014533027,0.1815541,110160.0,110150.0,0.0004]
[1757014533232,2.85392186,110160.0,110150.0,0.0004]
[1757014533441,2.70208196,110160.0,110150.0,0.00236]
[1757014533661,2.70208196,110160.0,110150.0,0.00282986]
[1757014533662,3.07708156,110160.0,110150.0,0.00282986]
[1757014533853,3.11504499,110160.0,110150.0,0.00282986]
[1757014534085,3.11504499,110160.0,110150.0,0.00597986]
[1757014534284,3.11504499,110160.0,110150.0,0.01097986]
[1757014534493,3.11504499,110160.0,110150.0,0.00797986]
[1757014534617,1.37462053,110160.0,110150.0,0.00716876]
[1757014534819,1.52950871,110160.0,110150.0,0.00916876]
[1757014535027,1.50195671,110160.0,110150.0,0.00716876]
[1757014536029,1.34883671,110160.0,110150.0,0.00716876]
[1757014536233,1.18956571,110160.0,110150.0,0.00716876]
[1757014536435,1.34268571,110160.0,110150.0,0.00916876]
[1757014536924,1.71739989,110160.0,110150.0,0.00916876]
[1757014538510,1.80931588,110160.0,110150.0,0.00916876]
[1757014538712,1.204023,110160.0,110150.0,0.00916876]
[1757014538932,1.69387518,110160.0,110150.0,0.00916876]
[1757014539541,1.67349518,110160.0,110150.0,0.00916876]
[1757014539946,1.298781,110160.0,110150.0,0.00916876]
[1757014540347,0.77094682,110160.0,110150.0,0.00916876]
[1757014540596,0.19601139,110160.0,110150.0,0.19073934]
[1757014540735,0.16757729,110160.0,110150.0,0.56545352]
[1757014541743,0.16757729,110160.0,110150.0,0.59678352]
[1757014541949,0.79000478,110170.0,110160.0,0.1815541]
[1757014542151,0.94312478,110170.0,110160.0,0.56141828]
[1757014542399,0.51423994,110170.0,110160.0,0.93613246]
[1757014542608,0.65312,110170.0,110160.0,0.93613246]
[1757014542786,0.65312,110170.0,110160.0,0.56141828]
[1757014543482,0.65312,110170.0,110160.0,0.56241828]
[1757014543694,0.65312,110170.0,110160.0,0.56441828]
[1757014546903,0.5,110170.0,110160.0,0.56441828]
[1757014547491,0.65312,110170.0,110160.0,0.59574828]
[1757014547697,0.83465762,110170.0,110160.0,0.1897041]
[1757014547957,1.2113318,110170.0,110160.0,0.00501]
[1757014548165,1.58898598,110170.0,110160.0,0.003]
[1757014548389,1.5542718,110170.0,110160.0,0.003]
[1757014548598,5.41028318,110170.0,110160.0,0.003]
[1757014549411,5.42452269,110170.0,110160.0,0.003]
[1757014549603,5.51643868,110170.0,110160.0,0.003]
[1757014550042,0.3315541,110160.0,110150.0,0.00046986]
[1757014550215,1.32057966,110160.0,110150.0,0.00046986]
[1757014550445,1.32547966,110160.0,110150.0,0.00046986]
[1757014550801,1.39467288,110160.0,110150.0,0.00046986]
[1757014551745,1.39467288,110160.0,110150.0,0.00246986]
[1757014552724,1.89467288,110160.0,110150.0,0.00346986]
[1757014553371,1.89173288,110160.0,110150.0,0.00346986]
[1757014553616,1.73853288,110160.0,110150.0,0.00861986]
[1757014553845,1.09842018,110160.0,110150.0,0.00861986]
[1757014554113,1.31997436,110160.0,110150.0,0.19019044]
[1757014554360,1.09842018,110160.0,110150.0,0.19019044]
[1757014554628,1.47313436,110160.0,110150.0,0.00861986]
[1757014555321,1.84980854,110160.0,110150.0,0.00346986]
[1757014555541,1.47317436,110160.0,110150.0,0.00861986]
[1757014555761,1.47317436,110160.0,110150.0,0.19019044]
[1757014555981,1.47325436,110160.0,110150.0,0.19019044]
[1757014556471,0.6727972,110160.0,110150.0,0.19019044]
[1757014556662,0.8348741,110160.0,110150.0,0.19019044]
[1757014556879,1.20958828,110160.0,110150.0,0.19019044]
[1757014557095,1.20958828,110160.0,110150.0,0.00861986]
[1757014557311,1.2290932,110160.0,110150.0,0.19019044]
[1757014557781,1.2290932,110160.0,110150.0,0.00861986]
[1757014558155,1.60576738,110160.0,110150.0,0.00861986]
[1757014558354,0.85437902,110160.0,110150.0,0.00861986]
[1757014558578,1.2290932,110160.0,110150.0,0.00861986]
[1757014558998,1.2290932,110160.0,110150.0,0.19019044]
[1757014559193,1.2290932,110160.0,110150.0,0.00861986]
[1757014559996,1.2290932,110160.0,110150.0,0.19019044]
[1757014560252,1.2310532,110160.0,110150.0,0.00861986]
[1757014560863,1.60576738,110160.0,110150.0,0.00861986]
[1757014561296,1.60576738,110160.0,110150.0,0.00547986]
[1757014561519,1.60576738,110160.0,110150.0,0.00346986]
[1757014561720,1.6604144,110160.0,110150.0,0.00346986]
[1757014562571,3.43753403,110160.0,110150.0,0.00346986]
[1757014562787,3.8264883,110160.0,110150.0,0.00346986]
[1757014563042,3.45177412,110160.0,110150.0,0.00346986]
[1757014563239,3.11631143,110160.0,110150.0,0.00346986]
[1757014563647,1.98434207,110160.0,110150.0,0.00346986]
[1757014563829,2.71971143,110160.0,110150.0,0.00346986]
[1757014565043,2.76049151,110160.0,110150.0,0.00346986]
[1757014566891,2.76045151,110160.0,110150.0,0.00346986]
[1757014568099,2.14764917,110160.0,110150.0,0.00856986]
[1757014568308,1.82852826,110160.0,110150.0,0.00856986]
[1757014568685,1.67724826,110160.0,110150.0,0.00856986]
[1757014568923,2.20528244,110160.0,110150.0,0.00856986]
[1757014569111,2.17884309,110160.0,110150.0,0.00856986]
[1757014569530,1.80412891,110160.0,110150.0,0.00856986]
[1757014570023,1.65080891,110160.0,110150.0,0.00856986]
[1757014570274,1.78722095,110160.0,110150.0,0.00856986]
[1757014570443,2.16193513,110160.0,110150.0,0.00856986]
[1757014570868,2.1788816,110160.0,110150.0,0.00856986]
[1757014571218,2.13462746,110160.0,110150.0,0.00856986]
[1757014571426,2.13666746,110160.0,110150.0,0.00856986]
[1757014572834,2.13668721,110160.0,110150.0,0.00856986]
[1757014573004,2.13452721,110160.0,110150.0,0.00856986]
[1757014573206,2.13656721,110160.0,110150.0,0.00856986]
[1757014573795,2.09578713,110160.0,110150.0,0.00856986]
[1757014574063,2.09374713,110160.0,110150.0,0.00856986]
[1757014574261,2.09374713,110160.0,110150.0,0.19014044]
[1757014575038,1.72107295,110160.0,110150.0,0.00542986]
[1757014575299,1.72107295,110160.0,110150.0,0.00346986]
[1757014575300,2.18770312,110160.0,110150.0,0.00346986]
[1757014575732,2.20465976,110160.0,110150.0,0.00346986]
[1757014576133,2.09890713,110160.0,110150.0,0.00346986]
[1757014576342,2.11586869,110160.0,110150.0,0.00346986]
[1757014576689,2.11586867,110160.0,110150.0,0.00346986]
[1757014576818,2.11586869,110160.0,110150.0,0.00346986]
[1757014577187,2.11587671,110160.0,110150.0,0.00346986]
[1757014577593,2.11275671,110160.0,110150.0,0.00346986]
[1757014577819,2.11587671,110160.0,110150.0,0.00346986]
[1757014578579,1.92925946,110160.0,110150.0,0.00346986]
[1757014578984,1.96263646,110160.0,110150.0,0.00346986]
[1757014579282,2.09374688,110160.0,110150.0,0.00856986]
[1757014579743,2.09578688,110160.0,110150.0,0.00856986]
[1757014579943,2.09578688,110160.0,110150.0,0.00542986]
[1757014580282,2.13608844,110160.0,110150.0,0.00542986]
[1757014581062,2.13608844,110160.0,110150.0,0.19014044]
[1757014581274,1.63400869,110160.0,110150.0,0.19014044]
[1757014581520,0.91929451,110160.0,110150.0,0.19014044]
[1757014582098,0.89976984,110160.0,110150.0,0.00856986]
[1757014582294,0.86150828,110160.0,110150.0,0.00856986]
[1757014582493,1.25577833,110160.0,110150.0,0.00856986]
[1757014582935,1.25577833,110160.0,110150.0,0.00542986]
[1757014583094,1.23622246,110160.0,110150.0,0.00542986]
[1757014583296,1.08302246,110160.0,110150.0,0.19014044]
[1757014583479,0.3347541,110160.0,110150.0,0.19014044]
[1757014583690,0.70946828,110160.0,110150.0,0.19014044]
[1757014585326,0.37471418,110160.0,110150.0,0.19014044]
[1757014585511,0.19577723,110170.0,110160.0,0.1815541]
[1757014585715,0.33469762,110170.0,110160.0,0.1866541]
[1757014585925,0.7094118,110170.0,110160.0,0.1866541]
[1757014586140,0.5562518,110170.0,110160.0,0.1866541]
[1757014586347,0.8594118,110170.0,110160.0,0.1866541]
[1757014586570,0.3164859,110160.0,110150.0,0.18818044]
[1757014586792,0.4999999,110160.0,110150.0,0.18618044]
[1757014586996,0.4999999,110160.0,110150.0,0.18814044]
[1757014587850,0.4999999,110160.0,110150.0,0.18914044]
[1757014589105,0.8594118,110170.0,110160.0,0.1815541]
[1757014589345,0.8614518,110170.0,110160.0,0.1835141]
[1757014590084,0.8645718,110170.0,110160.0,0.1835141]
[1757014590286,0.8614518,110170.0,110160.0,0.1835141]
[1757014590662,0.8614518,110170.0,110160.0,0.1845141]
[1757014590866,1.3645718,110170.0,110160.0,0.001]
[1757014592061,1.3645718,110170.0,110160.0,0.1825541]
[1757014593083,1.3645718,110170.0,110160.0,0.001]
[1757014594486,1.78315038,110170.0,110160.0,0.001]
[1757014594697,2.96544838,110170.0,110160.0,0.001]
[1757014595110,3.30544838,110170.0,110160.0,0.001]
[1757014595291,3.32497984,110170.0,110160.0,0.001]
[1757014595490,3.32493068,110170.0,110160.0,0.001]
[1757014595849,3.28106628,110170.0,110160.0,0.001]
[1757014596266,2.40637668,110170.0,110160.0,0.001]
[1757014596689,2.78106628,110170.0,110160.0,0.001]
[1757014597138,2.7847073,110170.0,110160.0,0.00085383]
[1757014597341,2.80166308,110170.0,110160.0,0.00085383]
[1757014597550,2.9020566,110170.0,110160.0,0.00085383]
[1757014597757,2.91629678,110170.0,110160.0,0.00085383]
[1757014598803,2.84878662,110170.0,110160.0,0.00085383]
[1757014601402,2.84878776,110170.0,110160.0,0.00085383]
[1757014602586,3.34878776,110170.0,110160.0,0.00085383]
[1757014603372,3.34878799,110170.0,110160.0,0.00085383]
[1757014603960,3.56972681,110170.0,110160.0,0.00085383]
[1757014604188,3.6616428,110170.0,110160.0,0.00085383]
[1757014604909,3.66164221,110170.0,110160.0,0.00085383]
[1757014605114,3.66799998,110170.0,110160.0,0.00085383]
[1757014605299,3.66164221,110170.0,110160.0,0.00085383]
[1757014606203,3.16164221,110170.0,110160.0,0.00085383]
[1757014606606,3.16204221,110170.0,110160.0,0.00085383]
[1757014606846,3.14780203,110170.0,110160.0,0.00085383]
[1757014609734,3.16839877,110170.0,110160.0,0.00085383]
[1757014609933,3.37224885,110170.0,110160.0,0.00085383]
[1757014610190,3.39273012,110170.0,110160.0,0.00085383]
[1757014610566,3.36832429,110170.0,110160.0,0.00085383]
[1757014610752,3.36828429,110170.0,110160.0,0.00085383]
[1757014611449,3.86832429,110170.0,110160.0,0.00085383]
[1757014612137,3.86828429,110170.0,110160.0,0.00085383]
[1757014613444,3.89267699,110170.0,110160.0,0.00085383]
[1757014615313,3.89266785,110170.0,110160.0,0.00085383]
[1757014615891,3.73914785,110170.0,110160.0,0.00085383]
[1757014616093,3.89266785,110170.0,110160.0,0.00085383]
[1757014616341,3.12675059,110170.0,110160.0,0.00085383]
[1757014616597,3.28023059,110170.0,110160.0,0.00085383]
[1757014616977,3.25891298,110170.0,110160.0,0.00085383]
[1757014617507,3.24465328,110170.0,110160.0,0.00085383]
[1757014618018,3.26597089,110170.0,110160.0,0.00085383]
[1757014618244,3.35788688,110170.0,110160.0,0.00085383]
[1757014619331,3.33349497,110170.0,110160.0,0.00085383]
[1757014619555,3.3271392,110170.0,110160.0,0.00085383]
[1757014619762,3.33349251,110170.0,110160.0,0.00085383]
[1757014619958,3.34249251,110170.0,110160.0,0.00085383]
[1757014620363,0.40249292,110160.0,110150.0,0.00046986]
[1757014620563,7.25396983,110160.0,110150.0,0.00046986]
[1757014620834,7.25888983,110160.0,110150.0,0.00046986]
[1757014621050,7.26253168,110160.0,110150.0,0.00046986]
[1757014621422,7.76253168,110160.0,110150.0,0.00046986]
[1757014621862,7.82153168,110160.0,110150.0,1e-08]
[1757014623403,7.82253168,110160.0,110150.0,1e-08]
[1757014623944,7.86477711,110160.0,110150.0,1e-08]
[1757014624466,7.86677711,110160.0,110150.0,1e-08]
[1757014624711,7.70417711,110160.0,110150.0,1e-08]
[1757014624896,7.82150112,110160.0,110150.0,1e-08]
[1757014625032,7.44681152,110160.0,110150.0,1e-08]
[1757014625236,7.60041152,110160.0,110150.0,1e-08]
[1757014626166,7.57909391,110160.0,110150.0,1e-08]
[1757014626353,7.15052863,110160.0,110150.0,1e-08]
[1757014626539,6.99692863,110160.0,110150.0,1e-08]
[1757014626743,7.15052863,110160.0,110150.0,1e-08]
[1757014626961,7.06401264,110160.0,110150.0,0.00213001]
[1757014627202,7.24719155,110160.0,110150.0,0.00213001]
[1757014627358,7.24719155,110160.0,110150.0,1e-08]
[1757014627359,7.25038155,110160.0,110150.0,1e-08]
[1757014628038,7.2646242,110160.0,110150.0,1e-08]
[1757014628251,7.0578342,110160.0,110150.0,0.00213001]
[1757014628456,6.56602519,110160.0,110150.0,0.00530001]
[1757014629386,6.41242519,110160.0,110150.0,0.00530001]
[1757014629603,6.56799519,110160.0,110150.0,0.00530001]
[1757014630613,6.57118519,110160.0,110150.0,1e-08]
[1757014630858,6.5925028,110160.0,110150.0,1e-08]
[1757014631379,6.55998389,110160.0,110150.0,1e-08]
[1757014631584,6.55998518,110160.0,110150.0,1e-08]
[1757014633588,1.02157057,110150.0,110140.0,0.00357]
[1757014633797,4.79409732,110150.0,110140.0,0.00365529]
[1757014633993,5.24156732,110150.0,110140.0,0.00578529]
[1757014634215,5.27207115,110150.0,110140.0,0.00048529]
[1757014634426,5.26899315,110150.0,110140.0,0.00261529]
[1757014635440,5.26899315,110150.0,110140.0,0.00048529]